fUST/lending_fUST_20240116
["ID","MTS","AMOUNT","RATE_DAILY","PERIOD"]
[311689918,1705336242186,-500.0,0.00030136,2]
[311689920,1705336242195,-767.0,0.00030136,2]
[311689922,1705336242205,-500.0,0.00030136,2]
[311689924,1705336242214,-421.22353423,0.00030136,2]
[311689925,1705336242223,-500.0,0.00030136,2]
[311689927,1705336242233,-500.0,0.00030136,2]
[311689929,1705336242244,-500.0,0.00030136,2]
[311689931,1705336242253,-500.0,0.00030136,2]
[311689933,1705336242263,-548.48,0.00030136,2]
[311689935,1705336242272,-698.24,0.00030136,2]
[311689937,1705336242282,-500.0,0.00030136,2]
[311689939,1705336242290,-500.0,0.00030136,2]
[311689940,1705336242367,-524.70301198,0.00030136,2]
[311689941,1705336242376,-500.0,0.00030136,2]
[311689942,1705336242386,-500.0,0.00030136,2]
[311689943,1705336242396,-500.0,0.00030136,2]
[311689944,1705336242405,-500.0,0.00030136,5]
[311689945,1705336242415,-500.0,0.00030136,2]
[311689946,1705336242424,-500.0,0.00030136,2]
[311689947,1705336242433,-501.50596896,0.00030136,2]
[311689948,1705336242443,-602.94191662,0.00030136,2]
[311689949,1705336242453,-500.0,0.00030136,2]
[311689950,1705336242463,-500.0,0.00030136,2]
[311689951,1705336242473,-2251.16,0.00030136,2]
[311689952,1705336242483,-501.34908397,0.00030136,2]
[311689954,1705336242496,-500.0,0.00030136,2]
[311689957,1705336242505,-500.0,0.00030136,2]
[311689959,1705336242514,-500.0,0.00030136,2]
[311689962,1705336242525,-500.0,0.00030136,2]
[311689965,1705336242535,-500.0,0.00030136,2]
[311689967,1705336242544,-500.0,0.00030136,2]
[311689969,1705336242554,-500.0,0.00030136,2]
[311689971,1705336242563,-553.46,0.00030136,2]
[311689973,1705336242573,-500.0,0.00030136,2]
[311689975,1705336242584,-500.0,0.00030136,2]
[311689977,1705336242595,-523.08396244,0.00030136,2]
[311689979,1705336242604,-501.21255682,0.00030136,2]
[311689981,1705336242614,-500.0,0.00030136,2]
[311689983,1705336242623,-500.0,0.00030136,2]
[311689985,1705336242633,-500.0,0.00030136,2]
[311689987,1705336242642,-500.0,0.00030136,2]
[311689989,1705336242652,-855.09,0.00030136,2]
[311689991,1705336242662,-500.0,0.00030136,2]
[311689993,1705336242671,-506.89266035,0.00030136,2]
[311689995,1705336242681,-500.0,0.00030136,2]
[311689997,1705336242690,-169.67655628,0.00030136,2]
[311689998,1705336242700,-500.0,0.00030136,2]
[311690000,1705336242709,-405.67767986,0.00030137,2]
[311690002,1705336242719,-308.91342373,0.00030198,2]
[311690004,1705336242729,-1000.0,0.00030198,7]
[311690006,1705336242740,-173.99078901,0.00030198,2]
[311690008,1705336242750,-319.58833969,0.00030198,2]
[311690010,1705336242760,-244.69170186,0.00030215,2]
[311690012,1705336242769,-244.69170186,0.00030308,2]
[311690014,1705336242779,-156.94549562,0.00030308,4]
[311690017,1705336242789,-155.0,0.00030308,4]
[311690019,1705336242799,-4713.56901456,0.00030308,3]
[311690020,1705336242808,-155.0,0.00030308,4]
[311690022,1705336242818,-668.7715591,0.00030308,4]
[311690024,1705336242827,-688.03989937,0.00030308,4]
[311690026,1705336242836,-155.09615962,0.00030308,4]
[311690028,1705336242846,-155.40035803,0.00030308,4]
[311690030,1705336242855,-243.92259179,0.00030308,4]
[311690032,1705336242864,-155.02325349,0.00030308,4]
[311690034,1705336242874,-266.37190097,0.00030308,4]
[311690036,1705336242884,-155.20946968,0.00030308,4]
[311690038,1705336242893,-1080.5,0.00030309,2]
[311690040,1705336242902,-1080.5,0.00030309,2]
[311690042,1705336242911,-1080.5,0.00030309,2]
[311690044,1705336242920,-1080.5,0.00030309,2]
[311690046,1705336242929,-1080.5,0.00030309,2]
[311690048,1705336242938,-1080.5,0.00030309,2]
[311690050,1705336242947,-1080.5,0.00030309,2]
[311690052,1705336242956,-500.0,0.00030309,2]
[311690054,1705336242966,-500.0,0.00030309,2]
[311690056,1705336242975,-388.41639368,0.00030309,2]
[311690058,1705336242984,-217.861042,0.0003031,2]
[311690060,1705336242994,-1965.92,0.0003032,2]
[311690062,1705336243003,-1080.5,0.00030407,2]
[311690064,1705336243012,-189.73290036,0.00030408,4]
[311690066,1705336243022,-1142.12733566,0.00030408,4]
[311690068,1705336243031,-12434.84622913,0.00030408,4]
[311690070,1705336243041,-1080.5,0.00030408,2]
[311690072,1705336243050,-500.0,0.00030408,2]
[311690074,1705336243059,-440.47017666,0.00030408,2]
[311690076,1705336243068,-500.0,0.00030408,2]
[311690078,1705336243077,-636.3558073,0.00030408,2]
[311690080,1705336243086,-500.0,0.00030408,2]
[311690082,1705336243095,-300.83376542,0.00030408,2]
[311690084,1705336243104,-200.0,0.00030409,2]
[311690086,1705336243113,-410.1520012,0.00030409,2]
[311690088,1705336243122,-4456.41779233,0.00030409,4]
[311690090,1705336243131,-1080.5,0.00030409,2]
[311690092,1705336243139,-1080.5,0.00030409,2]
[311690094,1705336243148,-1080.5,0.00030409,2]
[311690096,1705336243157,-1080.5,0.00030409,2]
[311690098,1705336243166,-1080.5,0.00030409,2]
[311690100,1705336243175,-1080.5,0.00030409,2]
[311690102,1705336243184,-1080.5,0.00030409,2]
[311690104,1705336243193,-1080.61659805,0.00030409,2]
[311690106,1705336243202,-151.0,0.00030409,2]
[311690108,1705336243211,-298.281992,0.00030409,2]
[311690110,1705336243220,-298.281992,0.00030409,2]
[311690112,1705336243229,-1285.702579,0.00030409,2]
[311690114,1705336243238,-1285.702579,0.00030409,2]
[311690116,1705336243249,-151.0,0.00030409,2]
[311690118,1705336243258,-500.0,0.0003041,2]
[311690120,1705336243269,-500.0,0.0003041,2]
[311690122,1705336243278,-500.0,0.0003041,2]
[311690124,1705336243287,-534.36183417,0.0003041,2]
[311690126,1705336243295,-500.0,0.0003041,2]
[311690128,1705336243305,-500.0,0.0003041,2]
[311690130,1705336243314,-496.66696298,0.0003041,2]
[311690132,1705336243323,-497.72312481,0.0003041,2]
[311690134,1705336243331,-500.0,0.0003041,2]
[311690136,1705336243340,-500.0,0.0003041,2]
[311690138,1705336243349,-500.0,0.0003041,2]
[311690140,1705336243359,-500.0,0.0003041,2]
[311690142,1705336243368,-500.0,0.0003041,2]
[311690144,1705336243377,-613.83179495,0.0003041,2]
[311690146,1705336243386,-500.0,0.0003041,2]
[311690148,1705336243396,-465.11184829,0.0003041,2]
[311690150,1705336243405,-500.0,0.0003041,2]
[311690152,1705336243414,-503.55172519,0.0003041,2]
[311690154,1705336243424,-500.0,0.0003041,2]
[311690156,1705336243433,-699.83,0.0003041,2]
[311690158,1705336243442,-500.0,0.0003041,2]
[311690160,1705336243452,-500.0,0.0003041,2]
[311690162,1705336243461,-500.0,0.0003041,2]
[311690164,1705336243470,-500.0,0.0003041,10]
[311690166,1705336243480,-500.0,0.0003041,2]
[311690168,1705336243489,-844.56,0.0003041,2]
[311690170,1705336243502,-1088.73,0.0003041,2]
[311690172,1705336243511,-530.50360264,0.0003041,2]
[311690174,1705336243520,-500.0,0.0003041,2]
[311690176,1705336243529,-500.0,0.0003041,2]
[311690178,1705336243538,-500.0,0.0003041,2]
[311690180,1705336243547,-504.49598516,0.0003041,2]
[311690182,1705336243556,-522.52346659,0.0003041,2]
[311690184,1705336243565,-500.0,0.0003041,2]
[311690185,1705336243574,-220.0,0.0003041,2]
[311690187,1705336243583,-500.0,0.0003041,2]
[311690189,1705336243593,-500.0,0.0003041,2]
[311690191,1705336243602,-500.0,0.0003041,2]
[311690193,1705336243611,-658.57,0.0003041,2]
[311690195,1705336243620,-501.15461094,0.0003041,2]
[311690197,1705336243629,-211.43012232,0.0003041,2]
[311690199,1705336243638,-500.0,0.0003041,2]
[311690201,1705336243647,-500.0,0.0003041,2]
[311690203,1705336243657,-501.41975854,0.0003041,2]
[311690205,1705336243666,-500.0,0.0003041,2]
[311690208,1705336243678,-524.95171221,0.0003041,2]
[311690209,1705336243687,-629.50201696,0.0003041,2]
[311690210,1705336243696,-500.0,0.0003041,2]
[311690212,1705336243705,-500.0,0.0003041,2]
[311690213,1705336243714,-508.34806306,0.0003041,2]
[311690215,1705336243724,-500.0,0.0003041,2]
[311690216,1705336243733,-500.0,0.0003041,2]
[311690218,1705336243743,-377.45367619,0.0003041,2]
[311690219,1705336243754,-504.355808,0.0003041,2]
[311690221,1705336243763,-500.0,0.0003041,2]
[311690222,1705336243771,-500.0,0.0003041,2]
[311690224,1705336243780,-500.0,0.0003041,2]
[311690225,1705336243790,-500.0,0.0003041,2]
[311690227,1705336243799,-500.0,0.0003041,2]
[311690228,1705336243807,-500.0,0.0003041,2]
[311690230,1705336243817,-500.0,0.0003041,2]
[311690231,1705336243826,-500.91038738,0.0003041,2]
[311690233,1705336243835,-500.0,0.0003041,2]
[311690234,1705336243844,-1892.58,0.0003041,2]
[311690240,1705336243916,-500.0,0.0003041,2]
[311690241,1705336243925,-500.0,0.0003041,2]
[311690243,1705336243935,-500.0,0.0003041,2]
[311690245,1705336243944,-500.0,0.0003041,2]
[311690246,1705336243953,-590.48,0.0003041,2]
[311690248,1705336243962,-578.86,0.0003041,2]
[311690250,1705336243970,-540.98,0.0003041,2]
[311690251,1705336243979,-500.0,0.0003041,2]
[311690253,1705336243988,-600.84545332,0.0003041,2]
[311690254,1705336244000,-1000.0,0.0003041,2]
[311690256,1705336244009,-500.0,0.0003041,2]
[311690257,1705336244018,-500.0,0.0003041,2]
[311690259,1705336244027,-500.0,0.0003041,2]
[311690260,1705336244036,-500.0,0.0003041,2]
[311690262,1705336244045,-301.30021568,0.0003041,2]
[311690264,1705336244054,-523.7082104,0.0003041,2]
[311690265,1705336244063,-500.0,0.0003041,2]
[311690267,1705336244072,-500.0,0.0003041,2]
[311690268,1705336244081,-945.65,0.0003041,2]
[311690270,1705336244091,-505.76347654,0.0003041,2]
[311690272,1705336244100,-168.26455569,0.0003041,2]
[311690273,1705336244109,-500.0,0.0003041,2]
[311690275,1705336244117,-500.0,0.0003041,2]
[311690276,1705336244126,-500.0,0.0003041,2]
[311690278,1705336244135,-287.40908041,0.0003041,2]
[311690280,1705336244144,-500.0,0.0003041,2]
[311690281,1705336244153,-500.0,0.0003041,2]
[311690283,1705336244162,-570.53074676,0.0003041,2]
[311690284,1705336244171,-500.0,0.0003041,2]
[311690286,1705336244180,-542.08068923,0.0003041,2]
[311690288,1705336244188,-500.0,0.0003041,2]
[311690289,1705336244197,-500.0,0.0003041,2]
[311690291,1705336244206,-500.0,0.0003041,2]
[311690292,1705336244215,-500.0,0.0003041,2]
[311690294,1705336244224,-500.0,0.0003041,2]
[311690295,1705336244234,-518.86247278,0.0003041,2]
[311690297,1705336244245,-501.08375039,0.0003041,2]
[311690299,1705336244255,-500.0,0.0003041,2]
[311690300,1705336244264,-500.0,0.0003041,2]
[311690302,1705336244273,-1135.34,0.0003041,2]
[311690304,1705336244282,-531.48001928,0.0003041,2]
[311690305,1705336244292,-552.1,0.0003041,2]
[311690307,1705336244301,-565.18204006,0.0003041,2]
[311690309,1705336244310,-500.0,0.0003041,2]
[311690310,1705336244319,-500.0,0.0003041,2]
[311690312,1705336244328,-500.0,0.0003041,2]
[311690313,1705336244337,-500.0,0.0003041,2]
[311690315,1705336244346,-500.0,0.0003041,2]
[311690316,1705336244354,-500.0,0.0003041,2]
[311690318,1705336244364,-500.0,0.0003041,2]
[311690320,1705336244373,-500.80431623,0.0003041,2]
[311690321,1705336244382,-500.0,0.0003041,2]
[311690323,1705336244391,-833.3,0.0003041,2]
[311690325,1705336244400,-500.0,0.0003041,2]
[311690326,1705336244410,-587.12,0.0003041,2]
[311690328,1705336244419,-504.38492076,0.0003041,2]
[311690329,1705336244428,-500.0,0.0003041,2]
[311690331,1705336244438,-619.09681012,0.0003041,2]
[311690332,1705336244447,-501.93703226,0.0003041,2]
[311690334,1705336244456,-500.0,0.0003041,2]
[311690336,1705336244466,-500.0,0.0003041,2]
[311690337,1705336244475,-10029.87534116,0.0003041,10]
[311690339,1705336244485,-500.0,0.0003041,2]
[311690341,1705336244495,-225.8789871,0.0003041,2]
[311690342,1705336244504,-500.0,0.0003041,2]
[311690344,1705336244513,-1000.0,0.0003041,5]
[311690346,1705336244523,-500.0,0.0003041,2]
[311690347,1705336244532,-509.33393078,0.0003041,2]
[311690349,1705336244541,-540.07,0.0003041,2]
[311690350,1705336244550,-500.0,0.0003041,2]
[311690352,1705336244559,-500.0,0.0003041,2]
[311690354,1705336244568,-500.0,0.0003041,2]
[311690355,1705336244577,-801.26,0.0003041,2]
[311690357,1705336244586,-500.0,0.0003041,2]
[311690358,1705336244596,-620.7001689,0.0003041,2]
[311690360,1705336244605,-500.0,0.0003041,2]
[311690362,1705336244614,-500.0,0.0003041,2]
[311690363,1705336244623,-500.0,0.0003041,2]
[311690365,1705336244633,-502.10644996,0.0003041,2]
[311690366,1705336244642,-500.0,0.0003041,2]
[311690368,1705336244652,-500.0,0.0003041,2]
[311690370,1705336244661,-500.0,0.0003041,2]
[311690371,1705336244670,-586.73628683,0.0003041,2]
[311690373,1705336244680,-500.0,0.0003041,2]
[311690374,1705336244690,-500.0,0.0003041,2]
[311690376,1705336244698,-501.11049196,0.0003041,2]
[311690378,1705336244707,-500.0,0.0003041,2]
[311690379,1705336244716,-500.0,0.0003041,2]
[311690381,1705336244725,-500.0,0.0003041,2]
[311690383,1705336244736,-941.18,0.0003041,2]
[311690384,1705336244745,-400.61539847,0.0003041,2]
[311690386,1705336244754,-761.38,0.0003041,2]
[311690387,1705336244763,-500.0,0.0003041,2]
[311690389,1705336244773,-90.54297769,0.0003041,2]
[311690396,1705336244869,-409.45702231,0.0003041,2]
[311690398,1705336244879,-504.64702003,0.0003041,2]
[311690399,1705336244887,-2091.37316297,0.0003041,2]
[311690408,1705336245008,-591.25016403,0.00023463,2]
[311690411,1705336245040,-12.06632988,0.00023463,2]
[311690421,1705336245167,-565.25948944,0.00030408,2]
[311690422,1705336245177,-500.0,0.00030408,2]
[311690424,1705336245186,-500.0,0.00030408,2]
[311690430,1705336245261,-434.84599629,0.00030408,2]
[311690432,1705336245282,-65.15400371,0.00030408,2]
[311690434,1705336245291,-500.0,0.00030408,2]
[311690435,1705336245300,-306.4472549,0.00030408,2]
[311690437,1705336245312,-193.5527451,0.00030408,2]
[311690439,1705336245321,-556.29965908,0.00030408,2]
[311690440,1705336245330,-500.0,0.00030408,2]
[311690442,1705336245339,-500.0,0.00030408,2]
[311690444,1705336245349,-500.0,0.00030408,2]
[311690445,1705336245359,-604.39572242,0.00030408,2]
[311690447,1705336245368,-500.0,0.00030408,2]
[311690449,1705336245377,-500.0,0.00030408,2]
[311690450,1705336245387,-500.0,0.00030408,2]
[311690452,1705336245397,-500.0,0.00030408,2]
[311690453,1705336245406,-500.0,0.00030408,2]
[311690455,1705336245416,-3674.61683703,0.0003041,2]
[311690457,1705336245425,-300.11412854,0.0003041,2]
[311690481,1705336245579,-500.0,0.00030408,2]
[311690482,1705336245589,-500.0,0.00030408,2]
[311690483,1705336245599,-500.0,0.00030408,2]
[311690484,1705336245608,-500.0,0.00030408,2]
[311690485,1705336245618,-461.86305008,0.00030408,2]
[311691297,1705336253967,-286.33642113,0.00023463,2]
[311691311,1705336254091,-5.84360043,0.00023463,2]
[311697775,1705336503896,-155.0,0.00023462,4]
[311697776,1705336503919,-202.19282322,0.00023463,2]
[311697777,1705336503941,-1109.80717678,0.00027,2]
[311697798,1705337431984,-154.98450155,0.00026321,4]
[311697799,1705337431994,-250.0,0.00026322,2]
[311697800,1705337432004,-264.020091,0.00026392,2]
[311697801,1705337432013,-166.04379076,0.000269,2]
[311697802,1705337432023,-1530.30696714,0.00027,2]
[311697803,1705337438058,-676.7339558,0.00027,2]
[311697804,1705337438067,-289.77163343,0.00027,2]
[311697805,1705337438077,-200.0,0.00027,2]
[311697806,1705337438086,-461.06432413,0.00027,2]
[311697807,1705337438095,-6515.73664025,0.00027121,2]
[311697808,1705337438104,-938.09463123,0.00027121,2]
[311697809,1705337438114,-261.19258853,0.000274,2]
[311697810,1705337438123,-10135.33451069,0.000274,2]
[311697811,1705337438132,-24900.0,0.00027648,2]
[311697812,1705337438141,-305.27027518,0.00028,2]
[311697813,1705337438152,-1549.15222886,0.0002831,2]
[311697814,1705337438162,-173.53134365,0.00028761,2]
[311697815,1705337438171,-2035.80105868,0.00028761,2]
[311697816,1705337438180,-620.00374762,0.00029033,2]
[311697817,1705337438190,-3478.77785184,0.00029531,2]
[311697818,1705337438199,-200.0,0.00029699,15]
[311697819,1705337438208,-5954.19539466,0.00029833,2]
[311697821,1705337438218,-5093.55,0.0002999,3]
[311697823,1705337438228,-10023.05464007,0.0003,4]
[311697824,1705337438237,-270.84411006,0.0003,30]
[311697826,1705337438246,-1200.0,0.0003,4]
[311697828,1705337438257,-283.72649143,0.0003,3]
[311697830,1705337438266,-2019.18371307,0.0003,2]
[311697832,1705337438275,-297.8809135,0.0003,4]
[311697834,1705337438285,-154.98450155,0.0003,4]
[311697836,1705337438294,-208.0,0.0003,2]
[311697838,1705337438303,-166.04379075,0.00030034,2]
[311697840,1705337438312,-178.00302053,0.00030036,2]
[311697842,1705337438322,-154.9690062,0.00030132,4]
[311697844,1705337438331,-154.9690062,0.00030133,4]
[311697846,1705337438340,-155.37359722,0.00030134,4]
[311697857,1705337438431,-189.73290036,0.00030134,4]
[311697859,1705337438440,-1142.12733566,0.00030134,4]
[311697861,1705337438450,-12434.84622913,0.00030134,4]
[311697863,1705337438459,-243.92259179,0.00030134,4]
[311697865,1705337438469,-155.20946968,0.00030134,4]
[311697867,1705337438478,-266.37190097,0.00030134,4]
[311697869,1705337438487,-155.02325349,0.00030134,4]
[311697872,1705337438496,-155.09615962,0.00030134,4]
[311697873,1705337438505,-668.7715591,0.00030134,4]
[311697875,1705337438514,-155.40035803,0.00030134,4]
[311697877,1705337438523,-155.0,0.00030134,4]
[311697879,1705337438532,-688.03989937,0.00030134,4]
[311697881,1705337438542,-155.0,0.00030134,4]
[311697883,1705337438551,-2718.90777924,0.00030134,3]
[311697886,1705337438566,-1994.66123532,0.00030134,3]
[311697888,1705337438575,-156.94549562,0.00030134,4]
[311697890,1705337438584,-298.96129893,0.00030134,4]
[311697892,1705337438593,-36905.76332305,0.00030134,4]
[311697894,1705337438602,-451.81472846,0.00030134,4]
[311697896,1705337438611,-303.01578227,0.00030134,4]
[311697898,1705337438620,-25864.00069649,0.00030135,4]
[311697900,1705337438629,-366.43438972,0.00030136,3]
[311697902,1705337438638,-500.0,0.00030136,2]
[311697904,1705337438647,-503.27883976,0.00030136,2]
[311697906,1705337438656,-518.44,0.00030136,2]
[311697908,1705337438665,-301.30021568,0.00030136,2]
[311697910,1705337438674,-500.0,0.00030136,2]
[311697912,1705337438683,-500.0,0.00030136,2]
[311697914,1705337438691,-500.0,0.00030136,2]
[311697916,1705337438700,-500.0,0.00030136,2]
[311697918,1705337438709,-287.40908041,0.00030136,2]
[311697920,1705337438720,-335.28718542,0.00030136,2]
[311697922,1705337438728,-565.18204006,0.00030136,2]
[311697923,1705337438738,-500.0,0.00030136,2]
[311697925,1705337438747,-500.0,0.00030136,2]
[311697927,1705337438756,-500.0,0.00030136,2]
[311697929,1705337438765,-517.57,0.00030136,2]
[311697931,1705337438774,-501.93703226,0.00030136,2]
[311697933,1705337438783,-500.0,0.00030136,2]
[311697936,1705337438792,-586.73628683,0.00030136,2]
[311697937,1705337438801,-500.0,0.00030136,2]
[311697939,1705337438811,-500.0,0.00030136,2]
[311697941,1705337438820,-400.61539847,0.00030136,2]
[311697942,1705337438830,-620.7001689,0.00030136,2]
[311697943,1705337438839,-500.0,0.00030136,2]
[311697944,1705337438848,-500.0,0.00030136,2]
[311697945,1705337438858,-500.0,0.00030136,2]
[311697946,1705337438867,-906.25,0.00030136,2]
[311697947,1705337438876,-500.0,0.00030136,2]
[311697948,1705337438885,-500.0,0.00030136,2]
[311697949,1705337438896,-500.0,0.00030136,2]
[311697950,1705337438905,-798.58,0.00030136,2]
[311697951,1705337438915,-500.0,0.00030136,2]
[311697952,1705337438925,-500.0,0.00030136,2]
[311697953,1705337438934,-500.0,0.00030136,2]
[311697954,1705337438944,-500.0,0.00030136,2]
[311697955,1705337438953,-504.91411394,0.00030136,2]
[311697956,1705337438963,-168.26455569,0.00030136,2]
[311697957,1705337438973,-150.87135062,0.00030136,2]
[311697958,1705337438982,-500.0,0.00030136,2]
[311697959,1705337438991,-500.0,0.00030136,2]
[311697960,1705337439000,-500.0,0.00030136,2]
[311697961,1705337439010,-500.0,0.00030136,2]
[311697962,1705337439019,-1088.03,0.00030136,2]
[311697963,1705337439028,-1813.73,0.00030136,2]
[311697964,1705337439037,-500.0,0.00030136,2]
[311697965,1705337439047,-500.0,0.00030136,2]
[311697966,1705337439056,-530.4,0.00030136,2]
[311697967,1705337439065,-500.0,0.00030136,2]
[311697968,1705337439075,-500.0,0.00030136,2]
[311697969,1705337439084,-500.0,0.00030136,2]
[311697970,1705337439093,-500.80431623,0.00030136,2]
[311697971,1705337439103,-500.0,0.00030136,2]
[311697972,1705337439112,-500.0,0.00030136,2]
[311697973,1705337439121,-500.0,0.00030136,2]
[311697974,1705337439130,-562.66,0.00030136,2]
[311697975,1705337439140,-500.0,0.00030136,2]
[311697976,1705337439150,-500.0,0.00030136,2]
[311697977,1705337439159,-500.0,0.00030136,2]
[311697978,1705337439168,-767.88,0.00030136,2]
[311697979,1705337439177,-500.0,0.00030136,2]
[311697980,1705337439186,-500.0,0.00030136,2]
[311697981,1705337439195,-500.0,0.00030136,2]
[311697982,1705337439204,-500.0,0.00030136,2]
[311697983,1705337439215,-388.41639368,0.00030136,2]
[311697984,1705337439230,-500.0,0.00030136,2]
[311697985,1705337439244,-225.8789871,0.00030136,2]
[311697986,1705337439258,-509.33393078,0.00030136,2]
[311697987,1705337439269,-10029.87534116,0.00030136,10]
[311697988,1705337439282,-500.0,0.00030136,2]
[311697989,1705337439296,-500.0,0.00030136,2]
[311697990,1705337439308,-500.0,0.00030136,2]
[311697992,1705337439321,-570.53074676,0.00030136,2]
[311697993,1705337439334,-500.0,0.00030136,2]
[311697994,1705337439347,-500.0,0.00030136,2]
[311697995,1705337439360,-324.20723267,0.00030136,2]
[311697996,1705337439371,-502.10644996,0.00030136,2]
[311697997,1705337439382,-500.0,0.00030136,2]
[311697998,1705337439394,-500.0,0.00030136,2]
[311697999,1705337439405,-534.36183417,0.00030136,2]
[311698000,1705337439417,-500.0,0.00030136,2]
[311698001,1705337439428,-500.0,0.00030136,2]
[311698002,1705337439440,-500.0,0.00030136,2]
[311698003,1705337439455,-500.0,0.00030136,2]
[311698004,1705337439468,-501.21255682,0.00030136,2]
[311698005,1705337439478,-501.11049196,0.00030136,2]
[311698006,1705337439491,-729.66,0.00030136,2]
[311698007,1705337439504,-598.99695834,0.00030136,2]
[311698008,1705337439517,-500.0,0.00030136,2]
[311698009,1705337439530,-500.0,0.00030136,2]
[311698010,1705337439541,-503.55172519,0.00030136,2]
[311698011,1705337439554,-500.0,0.00030136,2]
[311698012,1705337439567,-619.09681012,0.00030136,2]
[311698013,1705337439579,-765.35,0.00030136,2]
[311698014,1705337439592,-765.35,0.00030136,2]
[311698015,1705337439605,-765.35,0.00030136,2]
[311698016,1705337439619,-765.35,0.00030136,2]
[311698017,1705337439631,-765.35,0.00030136,2]
[311698018,1705337439643,-765.35,0.00030136,2]
[311698019,1705337439653,-765.35,0.00030136,2]
[311698020,1705337439664,-765.35,0.00030136,2]
[311698021,1705337439675,-765.35,0.00030136,2]
[311698022,1705337439686,-765.35,0.00030136,2]
[311698023,1705337439698,-765.35,0.00030136,2]
[311698024,1705337439710,-765.35,0.00030136,2]
[311698025,1705337439722,-765.35,0.00030136,2]
[311698026,1705337439734,-765.35,0.00030136,2]
[311698027,1705337439745,-765.35,0.00030136,2]
[311698028,1705337439755,-765.35,0.00030136,2]
[311698029,1705337439766,-500.0,0.00030136,2]
[311698030,1705337439777,-1000.0,0.00030136,5]
[311698031,1705337439788,-500.0,0.00030136,2]
[311698032,1705337439799,-500.0,0.00030136,2]
[311698033,1705337439810,-500.0,0.00030136,2]
[311698034,1705337439822,-500.0,0.00030136,2]
[311698035,1705337439833,-500.0,0.00030136,2]
[311698036,1705337439844,-500.0,0.00030136,10]
[311698037,1705337439855,-500.0,0.00030136,2]
[311698038,1705337439866,-500.0,0.00030136,2]
[311698039,1705337439877,-500.0,0.00030136,2]
[311698040,1705337439888,-2267.78,0.00030136,2]
[311698041,1705337439899,-500.0,0.00030136,2]
[311698042,1705337439910,-500.0,0.00030136,2]
[311698043,1705337439921,-512.36,0.00030136,2]
[311698044,1705337439932,-500.0,0.00030136,2]
[311698045,1705337439943,-500.0,0.00030136,2]
[311698046,1705337439955,-169.67655628,0.00030136,2]
[311698047,1705337439965,-1157.31,0.00030136,2]
[311698048,1705337439977,-204.31271029,0.00030136,2]
[311698049,1705337439988,-500.0,0.00030136,2]
[311698050,1705337439999,-500.0,0.00030136,2]
[311698051,1705337440010,-500.0,0.00030136,2]
[311698052,1705337440020,-522.52346659,0.00030136,2]
[311698053,1705337440032,-220.0,0.00030136,2]
[311698055,1705337440042,-500.0,0.00030136,2]
[311698057,1705337440053,-670.67,0.00030136,2]
[311698058,1705337440064,-1088.73,0.00030136,2]
[311698059,1705337440074,-500.0,0.00030136,2]
[311698060,1705337440085,-500.0,0.00030136,2]
[311698061,1705337440096,-500.0,0.00030136,2]
[311698062,1705337440108,-211.43012232,0.00030136,2]
[311698063,1705337440119,-809.37,0.00030136,2]
[311698064,1705337440131,-500.0,0.00030136,2]
[311698065,1705337440143,-501.41975854,0.00030136,2]
[311698066,1705337440155,-1023.8,0.00030136,2]